[Event "Late-Titled-Tuesday-Blitz-October-10-2023"]
[Site "Chess.com"]
[Date "2023.10.10"]
[Round "7"]
[White "CarlosjPineror"]
[Black "miraitrunks"]
[Result "1-0"]
[WhiteElo "2500"]
[BlackElo "2244"]
[TimeControl "180+1"]
[EndTime "15:13:08 PDT"]
[Termination "CarlosjPineror won by checkmate"]

1. e4 {[%clk 0:02:56.2]} 1... c5 {[%clk 0:02:59.6]} 2. Nf3 {[%clk 0:02:54.7]}
2... Nc6 {[%clk 0:02:57.5]} 3. d4 {[%clk 0:02:51]} 3... cxd4 {[%clk 0:02:58.4]}
4. Nxd4 {[%clk 0:02:51.9]} 4... e5 {[%clk 0:02:58.6]} 5. Nb5 {[%clk 0:02:51.1]}
5... a6 {[%clk 0:02:58.9]} 6. Nd6+ {[%clk 0:02:48.9]} 6... Bxd6 {[%clk
0:02:59.6]} 7. Qxd6 {[%clk 0:02:49.8]} 7... Qf6 {[%clk 0:03:00.5]} 8. Qd2 {[%clk
0:02:39.2]} 8... Nge7 {[%clk 0:02:59.8]} 9. Qg5 {[%clk 0:02:15.7]} 9... Nd4
{[%clk 0:02:46.6]} 10. Bd3 {[%clk 0:02:08.3]} 10... Qb6 {[%clk 0:02:37.6]} 11.
Qxg7 {[%clk 0:01:51.6]} 11... Rg8 {[%clk 0:02:32.6]} 12. Qxe5 {[%clk 0:01:51.6]}
12... Rxg2 {[%clk 0:02:31.5]} 13. Qh8+ {[%clk 0:01:15.4]} 13... Rg8 {[%clk
0:02:13.9]} 14. Qxh7 {[%clk 0:01:13.5]} 14... Rg2 {[%clk 0:02:11.9]} 15. Qh8+
{[%clk 0:01:03.7]} 15... Rg8 {[%clk 0:02:10]} 16. Qh6 {[%clk 0:00:51.7]} 16...
Nf3+ {[%clk 0:01:35.7]} 17. Ke2 {[%clk 0:00:41.6]} 17... Ng1+ {[%clk 0:01:32.1]}
18. Kf1 {[%clk 0:00:33.9]} 18... Qxh6 {[%clk 0:01:10.6]} 19. Bxh6 {[%clk
0:00:32.9]} 19... Nf3 {[%clk 0:01:11]} 20. Nd2 {[%clk 0:00:29]} 20... Nd4 {[%clk
0:01:05.3]} 21. Be3 {[%clk 0:00:24.8]} 21... Nec6 {[%clk 0:01:04.2]} 22. c3
{[%clk 0:00:23.7]} 22... Ne6 {[%clk 0:01:03.7]} 23. f4 {[%clk 0:00:23.7]} 23...
d6 {[%clk 0:00:56.2]} 24. Kf2 {[%clk 0:00:22.9]} 24... Nc5 {[%clk 0:00:55.7]}
25. Bc2 {[%clk 0:00:21.2]} 25... Bh3 {[%clk 0:00:54.2]} 26. Rhg1 {[%clk
0:00:21.2]} 26... O-O-O {[%clk 0:00:54.3]} 27. Rxg8 {[%clk 0:00:21]} 27... Rxg8
{[%clk 0:00:55.2]} 28. Rg1 {[%clk 0:00:21.7]} 28... Re8 {[%clk 0:00:54.8]} 29.
Rg7 {[%clk 0:00:21.4]} 29... Be6 {[%clk 0:00:54]} 30. b3 {[%clk 0:00:20.4]}
30... Rh8 {[%clk 0:00:53.9]} 31. Kg2 {[%clk 0:00:17.6]} 31... Nd8 {[%clk
0:00:44.4]} 32. f5 {[%clk 0:00:15.5]} 32... Bd7 {[%clk 0:00:43.2]} 33. Nf3
{[%clk 0:00:11.2]} 33... Bc6 {[%clk 0:00:42.7]} 34. Nd2 {[%clk 0:00:08.3]} 34...
Rh4 {[%clk 0:00:41.5]} 35. Kg3 {[%clk 0:00:08.6]} 35... Rh8 {[%clk 0:00:30.6]}
36. h4 {[%clk 0:00:08.2]} 36... Be8 {[%clk 0:00:19.1]} 37. c4 {[%clk 0:00:07.7]}
37... Nc6 {[%clk 0:00:18.9]} 38. Nf3 {[%clk 0:00:06.9]} 38... Nd7 {[%clk
0:00:16.5]} 39. Bf4 {[%clk 0:00:06.8]} 39... Nde5 {[%clk 0:00:15.6]} 40. Nxe5
{[%clk 0:00:07]} 40... dxe5 {[%clk 0:00:16.5]} 41. Be3 {[%clk 0:00:07.1]} 41...
Kd7 {[%clk 0:00:16.8]} 42. Bd1 {[%clk 0:00:07.3]} 42... b5 {[%clk 0:00:13.6]}
43. h5 {[%clk 0:00:07.6]} 43... bxc4 {[%clk 0:00:13.7]} 44. bxc4 {[%clk
0:00:08.5]} 44... Ke7 {[%clk 0:00:09.4]} 45. h6 {[%clk 0:00:09.1]} 45... Kf8
{[%clk 0:00:07.3]} 46. Bc5+ {[%clk 0:00:09.2]} 46... Ne7 {[%clk 0:00:06.3]} 47.
f6 {[%clk 0:00:10.1]} 47... Rxh6 {[%clk 0:00:04.3]} 48. Bxe7# {[%clk 0:00:11]}
1-0

[Event "Late-Titled-Tuesday-Blitz-October-10-2023"]
[Site "Chess.com"]
[Date "2023.10.10"]
[Round "7"]
[White "greekplayer1"]
[Black "kuli4ik"]
[Result "1-0"]
[WhiteElo "2687"]
[BlackElo "2911"]
[TimeControl "180+1"]
[EndTime "15:13:10 PDT"]
[Termination "greekplayer1 won by resignation"]

1. e4 {[%clk 0:02:56.8]} 1... g6 {[%clk 0:02:57.8]} 2. h4 {[%clk 0:02:55.2]}
2... Bg7 {[%clk 0:02:55.8]} 3. h5 {[%clk 0:02:54.4]} 3... d5 {[%clk 0:02:56]} 4.
exd5 {[%clk 0:02:53.4]} 4... Qxd5 {[%clk 0:02:55.5]} 5. Nc3 {[%clk 0:02:54]}
5... Qa5 {[%clk 0:02:52.4]} 6. d4 {[%clk 0:02:51.5]} 6... Nc6 {[%clk 0:02:52]}
7. Be3 {[%clk 0:02:46.5]} 7... Bf5 {[%clk 0:02:47.5]} 8. h6 {[%clk 0:02:43.5]}
8... Bxd4 {[%clk 0:02:17.4]} 9. Bxd4 {[%clk 0:02:38]} 9... O-O-O {[%clk
0:02:17.1]} 10. Bxh8 {[%clk 0:02:30.8]} 10... Rxd1+ {[%clk 0:02:16.8]} 11. Rxd1
{[%clk 0:02:31.7]} 11... Nf6 {[%clk 0:01:58]} 12. Bxf6 {[%clk 0:02:29]} 12...
exf6 {[%clk 0:01:58]} 13. Nf3 {[%clk 0:02:29.2]} 13... Qb4 {[%clk 0:01:50.2]}
14. Bd3 {[%clk 0:02:24.1]} 14... Bg4 {[%clk 0:01:39.5]} 15. Rh4 {[%clk
0:02:18.6]} 15... Qxb2 {[%clk 0:01:32.6]} 16. Rxg4 {[%clk 0:02:15]} 16... Qxc3+
{[%clk 0:01:32.1]} 17. Kf1 {[%clk 0:02:15.4]} 17... a6 {[%clk 0:01:19.9]} 18.
Rc4 {[%clk 0:02:10.2]} 18... Qa5 {[%clk 0:01:14.4]} 19. Re4 {[%clk 0:02:03.3]}
19... Kb8 {[%clk 0:00:53]} 20. Re8+ {[%clk 0:02:01.5]} 20... Ka7 {[%clk
0:00:53.3]} 21. Rh8 {[%clk 0:02:00.6]} 21... Qh5 {[%clk 0:00:52.2]} 22. Rxh7
{[%clk 0:01:58]} 22... Nd4 {[%clk 0:00:52.3]} 23. Ke1 {[%clk 0:01:44.8]} 23...
Ne6 {[%clk 0:00:42.6]} 24. Rh8 {[%clk 0:01:23.3]} 24... Nf4 {[%clk 0:00:36.7]}
25. h7 {[%clk 0:01:15.9]} 25... Nxg2+ {[%clk 0:00:34.9]} 26. Kd2 {[%clk
0:01:15.6]} 26... Qh6+ {[%clk 0:00:26.7]} 27. Kc3 {[%clk 0:01:14.6]} 27... Qg7
{[%clk 0:00:26.8]} 28. Rc8 {[%clk 0:01:04.7]} 28... f5+ {[%clk 0:00:25]} 29. Nd4
{[%clk 0:01:02.1]} 29... Qxh7 {[%clk 0:00:25.1]} 30. Rxc7 {[%clk 0:00:57.6]}
30... Qh2 {[%clk 0:00:24.9]} 31. Rd7 {[%clk 0:00:47.2]} 31... Qe5 {[%clk
0:00:14.9]} 32. Rb1 {[%clk 0:00:40.6]} 32... Qa5+ {[%clk 0:00:15]} 33. Rb4
{[%clk 0:00:37.9]} 33... Qc5+ {[%clk 0:00:09.5]} 34. Kb3 {[%clk 0:00:37.8]}
34... Qc8 {[%clk 0:00:08.7]} 35. Rxf7 {[%clk 0:00:32.9]} 35... Nf4 {[%clk
0:00:08.4]} 36. Rbxb7+ {[%clk 0:00:31.6]} 36... Qxb7+ {[%clk 0:00:08.4]} 37.
Rxb7+ {[%clk 0:00:32.5]} 37... Kxb7 {[%clk 0:00:09.3]} 38. Kc4 {[%clk
0:00:32.1]} 38... Kb6 {[%clk 0:00:08.7]} 39. Ne2 {[%clk 0:00:29.2]} 39... Nh3
{[%clk 0:00:09.1]} 40. f4 {[%clk 0:00:29]} 40... Nf2 {[%clk 0:00:07.2]} 41. Kd4
{[%clk 0:00:29.1]} 41... Ng4 {[%clk 0:00:07]} 42. c4 {[%clk 0:00:28.7]} 42... a5
{[%clk 0:00:07.5]} 43. c5+ {[%clk 0:00:29.6]} 43... Kc6 {[%clk 0:00:07.8]} 44.
Bc4 {[%clk 0:00:29]} 44... Nf6 {[%clk 0:00:07.3]} 45. Bf7 {[%clk 0:00:28.4]}
45... Nd7 {[%clk 0:00:07.3]} 46. Bxg6 {[%clk 0:00:25.3]} 46... Nxc5 {[%clk
0:00:07.7]} 47. Bxf5 {[%clk 0:00:25.9]} 47... Na6 {[%clk 0:00:07.5]} 48. Be4+
{[%clk 0:00:25.9]} 48... Kd6 {[%clk 0:00:07.9]} 49. Nc3 {[%clk 0:00:26.8]} 49...
Nb4 {[%clk 0:00:08]} 50. a3 {[%clk 0:00:27.3]} 50... Na6 {[%clk 0:00:08.5]} 51.
f5 {[%clk 0:00:27.6]} 51... Nc7 {[%clk 0:00:08.5]} 52. a4 {[%clk 0:00:26.2]}
52... Na6 {[%clk 0:00:08.2]} 53. Nb5+ {[%clk 0:00:26.5]} 53... Ke7 {[%clk
0:00:08.6]} 54. Ke5 {[%clk 0:00:27.2]} 54... Nc5 {[%clk 0:00:08.5]} 55. f6+
{[%clk 0:00:28.1]} 55... Kf8 {[%clk 0:00:08.8]} 56. Bc2 {[%clk 0:00:25.8]} 56...
Kf7 {[%clk 0:00:08.8]} 57. Nd6+ {[%clk 0:00:25.3]} 57... Kf8 {[%clk 0:00:09.3]}
58. Ne4 {[%clk 0:00:22.5]} 58... Na6 {[%clk 0:00:06.8]} 59. Ng5 {[%clk
0:00:21.3]} 59... Nb4 {[%clk 0:00:04.3]} 60. Bb3 {[%clk 0:00:20.4]} 60... Nd3+
{[%clk 0:00:04.6]} 61. Kf5 {[%clk 0:00:19.7]} 61... Nc5 {[%clk 0:00:03.4]} 62.
Ne6+ {[%clk 0:00:20.1]} 62... Nxe6 {[%clk 0:00:01.6]} 63. Kxe6 {[%clk 0:00:21]}
1-0

[Event "Late-Titled-Tuesday-Blitz-October-10-2023"]
[Site "Chess.com"]
[Date "2023.10.10"]
[Round "7"]
[White "FERNANDEZL1983"]
[Black "Harald_Schmidt"]
[Result "0-1"]
[WhiteElo "2522"]
[BlackElo "2372"]
[TimeControl "180+1"]
[EndTime "15:13:18 PDT"]
[Termination "Harald_Schmidt won on time"]

1. d4 {[%clk 0:03:00.9]} 1... d5 {[%clk 0:02:58.8]} 2. Bf4 {[%clk 0:03:00.7]}
2... c6 {[%clk 0:02:59.7]} 3. e3 {[%clk 0:02:58.9]} 3... Bf5 {[%clk 0:02:55]} 4.
c4 {[%clk 0:02:56.1]} 4... e6 {[%clk 0:02:54.1]} 5. Nc3 {[%clk 0:02:50.5]} 5...
Nd7 {[%clk 0:02:50.5]} 6. Qb3 {[%clk 0:02:49.6]} 6... b6 {[%clk 0:02:31.1]} 7.
Nf3 {[%clk 0:02:41.4]} 7... Ngf6 {[%clk 0:02:28.1]} 8. h3 {[%clk 0:02:40.4]}
8... Be7 {[%clk 0:02:26.6]} 9. Be2 {[%clk 0:02:40.1]} 9... O-O {[%clk 0:02:25]}
10. O-O {[%clk 0:02:29.7]} 10... dxc4 {[%clk 0:02:17.7]} 11. Qxc4 {[%clk
0:02:20.7]} 11... c5 {[%clk 0:02:15.5]} 12. Rfd1 {[%clk 0:02:18]} 12... Qc8
{[%clk 0:02:14.1]} 13. Qa4 {[%clk 0:02:05.9]} 13... a6 {[%clk 0:02:09.5]} 14.
Rd2 {[%clk 0:01:49.4]} 14... b5 {[%clk 0:02:04.1]} 15. Qd1 {[%clk 0:01:48.7]}
15... Qb7 {[%clk 0:01:59.9]} 16. Ne5 {[%clk 0:01:46.1]} 16... Rfd8 {[%clk
0:01:50.9]} 17. Bf3 {[%clk 0:01:46]} 17... Ne4 {[%clk 0:01:44.3]} 18. g4 {[%clk
0:01:31]} 18... Nxe5 {[%clk 0:01:43.1]} 19. Bxe5 {[%clk 0:01:27.8]} 19... Bg6
{[%clk 0:01:40.1]} 20. Kg2 {[%clk 0:00:49]} 20... b4 {[%clk 0:01:33.8]} 21. Nxe4
{[%clk 0:00:46.1]} 21... Bxe4 {[%clk 0:01:31.9]} 22. Bxe4 {[%clk 0:00:47]} 22...
Qxe4+ {[%clk 0:01:31]} 23. Qf3 {[%clk 0:00:47.9]} 23... Qxf3+ {[%clk 0:01:28.3]}
24. Kxf3 {[%clk 0:00:48.8]} 24... Rac8 {[%clk 0:01:17]} 25. Rc1 {[%clk
0:00:38.4]} 25... f6 {[%clk 0:01:11.6]} 26. Bg3 {[%clk 0:00:37]} 26... cxd4
{[%clk 0:01:10.3]} 27. Rxc8 {[%clk 0:00:36.6]} 27... Rxc8 {[%clk 0:01:09.5]} 28.
exd4 {[%clk 0:00:27.3]} 28... Kf7 {[%clk 0:01:07.5]} 29. Ke4 {[%clk 0:00:26.9]}
29... a5 {[%clk 0:01:05]} 30. Kd3 {[%clk 0:00:23.7]} 30... Ke8 {[%clk
0:01:03.1]} 31. f4 {[%clk 0:00:13.6]} 31... Kd7 {[%clk 0:01:02]} 32. f5 {[%clk
0:00:13.3]} 32... g6 {[%clk 0:00:57.1]} 33. fxe6+ {[%clk 0:00:11.8]} 33... Kxe6
{[%clk 0:00:56.5]} 34. Ke4 {[%clk 0:00:12.7]} 34... a4 {[%clk 0:00:52.2]} 35.
d5+ {[%clk 0:00:12.2]} 35... Kd7 {[%clk 0:00:51.8]} 36. d6 {[%clk 0:00:13]}
36... Bd8 {[%clk 0:00:50.5]} 37. Kd5 {[%clk 0:00:13.1]} 37... Bb6 {[%clk
0:00:47.2]} 38. Bf2 {[%clk 0:00:11.2]} 38... Rc6 {[%clk 0:00:42.7]} 39. Bg3
{[%clk 0:00:08.6]} 39... Rc5+ {[%clk 0:00:36.3]} 40. Ke4 {[%clk 0:00:08.5]}
40... b3 {[%clk 0:00:32.8]} 41. axb3 {[%clk 0:00:07.8]} 41... axb3 {[%clk
0:00:32.4]} 42. Rd3 {[%clk 0:00:08.7]} 42... Rc4+ {[%clk 0:00:28.3]} 43. Kf3
{[%clk 0:00:07.7]} 43... Rb4 {[%clk 0:00:27.3]} 44. Rc3 {[%clk 0:00:06.8]} 44...
f5 {[%clk 0:00:26.5]} 45. gxf5 {[%clk 0:00:06.5]} 45... gxf5 {[%clk 0:00:26]}
46. Bf4 {[%clk 0:00:07.4]} 46... Ba5 {[%clk 0:00:22.3]} 47. Rc1 {[%clk
0:00:07.3]} 47... Rd4 {[%clk 0:00:18.3]} 48. Rg1 {[%clk 0:00:07.6]} 48... Bd2
{[%clk 0:00:14]} 49. Rg7+ {[%clk 0:00:06.3]} 49... Ke8 {[%clk 0:00:13.1]} 50.
Re7+ {[%clk 0:00:06]} 50... Kd8 {[%clk 0:00:12.9]} 51. Bxd2 {[%clk 0:00:05]}
51... Rxd2 {[%clk 0:00:10.1]} 52. Rxh7 {[%clk 0:00:05.9]} 52... Rxb2 {[%clk
0:00:08.8]} 53. Rb7 {[%clk 0:00:05.2]} 53... Rb1 {[%clk 0:00:08.3]} 54. h4
{[%clk 0:00:04.7]} 54... b2 {[%clk 0:00:08.1]} 55. Kg2 {[%clk 0:00:04.2]} 55...
f4 {[%clk 0:00:08.1]} 56. h5 {[%clk 0:00:03.7]} 56... f3+ {[%clk 0:00:08.6]} 57.
Kh2 {[%clk 0:00:03]} 57... f2 {[%clk 0:00:08.5]} 0-1

[Event "Late-Titled-Tuesday-Blitz-October-10-2023"]
[Site "Chess.com"]
[Date "2023.10.10"]
[Round "7"]
[White "a-z30"]
[Black "IngOscarArdila"]
[Result "1-0"]
[WhiteElo "2465"]
[BlackElo "2309"]
[TimeControl "180+1"]
[EndTime "15:13:19 PDT"]
[Termination "a-z30 won on time"]

1. c4 {[%clk 0:03:00.9]} 1... Nf6 {[%clk 0:02:59.2]} 2. Nc3 {[%clk 0:03:00.6]}
2... e6 {[%clk 0:02:58.9]} 3. d4 {[%clk 0:03:00.4]} 3... Bb4 {[%clk 0:02:58]} 4.
g3 {[%clk 0:03:00.8]} 4... O-O {[%clk 0:02:57.1]} 5. Bg2 {[%clk 0:03:00]} 5...
d6 {[%clk 0:02:56.6]} 6. Bd2 {[%clk 0:02:58.7]} 6... Qe7 {[%clk 0:02:54.5]} 7.
Nf3 {[%clk 0:02:58.4]} 7... e5 {[%clk 0:02:51.6]} 8. O-O {[%clk 0:02:56.4]} 8...
exd4 {[%clk 0:02:49.1]} 9. Nxd4 {[%clk 0:02:55.6]} 9... a6 {[%clk 0:02:42.7]}
10. h3 {[%clk 0:02:50.9]} 10... Bc5 {[%clk 0:02:41.9]} 11. Nb3 {[%clk
0:02:45.3]} 11... Ba7 {[%clk 0:02:41]} 12. Bg5 {[%clk 0:02:45]} 12... c6 {[%clk
0:02:35]} 13. Qd2 {[%clk 0:02:43.7]} 13... h6 {[%clk 0:02:32.7]} 14. Bf4 {[%clk
0:02:42.9]} 14... Rd8 {[%clk 0:02:24.9]} 15. Rad1 {[%clk 0:02:39.7]} 15... Ne8
{[%clk 0:02:24.7]} 16. Rfe1 {[%clk 0:02:34.3]} 16... Be6 {[%clk 0:02:20.6]} 17.
Qd3 {[%clk 0:02:06.8]} 17... g5 {[%clk 0:02:11.3]} 18. Be3 {[%clk 0:02:02]}
18... Bxe3 {[%clk 0:02:04.3]} 19. Qxe3 {[%clk 0:02:02.9]} 19... Nd7 {[%clk
0:02:03.8]} 20. Nd4 {[%clk 0:01:31.1]} 20... Ne5 {[%clk 0:02:01.7]} 21. b3
{[%clk 0:01:29.2]} 21... Qf6 {[%clk 0:01:42.1]} 22. Ne4 {[%clk 0:01:28.7]} 22...
Qg7 {[%clk 0:01:42.3]} 23. Nf3 {[%clk 0:01:26.9]} 23... d5 {[%clk 0:01:30.5]}
24. Nc5 {[%clk 0:01:15.5]} 24... Nxf3+ {[%clk 0:01:25.6]} 25. exf3 {[%clk
0:01:07]} 25... d4 {[%clk 0:01:22]} 26. Qd2 {[%clk 0:01:01]} 26... Qf6 {[%clk
0:00:41.1]} 27. Nxb7 {[%clk 0:00:58]} 27... Rd7 {[%clk 0:00:39.6]} 28. Nc5
{[%clk 0:00:57.3]} 28... Rdd8 {[%clk 0:00:39.8]} 29. Re4 {[%clk 0:00:47.5]}
29... Nc7 {[%clk 0:00:33.7]} 30. Rxd4 {[%clk 0:00:45.6]} 30... Rxd4 {[%clk
0:00:31]} 31. Qxd4 {[%clk 0:00:46.5]} 31... Qxd4 {[%clk 0:00:29.2]} 32. Rxd4
{[%clk 0:00:46.1]} 32... Kf8 {[%clk 0:00:30.1]} 33. f4 {[%clk 0:00:45.5]} 33...
gxf4 {[%clk 0:00:28.5]} 34. Rxf4 {[%clk 0:00:45.3]} 34... Rd8 {[%clk 0:00:25.5]}
35. g4 {[%clk 0:00:33.8]} 35... Rd1+ {[%clk 0:00:25.3]} 36. Kh2 {[%clk
0:00:33.6]} 36... Rd2 {[%clk 0:00:25.4]} 37. a4 {[%clk 0:00:31.6]} 37... Rb2
{[%clk 0:00:23.6]} 38. Bxc6 {[%clk 0:00:30.3]} 38... a5 {[%clk 0:00:23.1]} 39.
Kg3 {[%clk 0:00:30.2]} 39... Ke7 {[%clk 0:00:22.5]} 40. Bg2 {[%clk 0:00:26.2]}
40... Kd6 {[%clk 0:00:20]} 41. Ne4+ {[%clk 0:00:25.6]} 41... Ke5 {[%clk
0:00:20.4]} 42. Rf3 {[%clk 0:00:25.1]} 42... f5 {[%clk 0:00:15.8]} 43. gxf5
{[%clk 0:00:24.2]} 43... Bxf5 {[%clk 0:00:16.7]} 44. Re3 {[%clk 0:00:23.9]}
44... Ne6 {[%clk 0:00:14.4]} 45. Nc5+ {[%clk 0:00:21.4]} 45... Kf6 {[%clk
0:00:14.8]} 46. Nxe6 {[%clk 0:00:22.2]} 46... Bxe6 {[%clk 0:00:15.5]} 47. f4
{[%clk 0:00:20.2]} 47... Bf5 {[%clk 0:00:15.2]} 48. Bf3 {[%clk 0:00:19.7]} 48...
Rb1 {[%clk 0:00:13.7]} 49. Bg4 {[%clk 0:00:19.1]} 49... Bc2 {[%clk 0:00:12.5]}
50. Rc3 {[%clk 0:00:15.9]} 50... Bxb3 {[%clk 0:00:11.8]} 51. c5 {[%clk
0:00:15.3]} 51... Bd5 {[%clk 0:00:11.8]} 52. c6 {[%clk 0:00:14.9]} 52... Rg1+
{[%clk 0:00:06.1]} 53. Kh4 {[%clk 0:00:13.4]} 53... Ra1 {[%clk 0:00:04.4]} 54.
c7 {[%clk 0:00:13]} 54... Bb7 {[%clk 0:00:05.3]} 55. Rc4 {[%clk 0:00:11.1]}
55... Ke7 {[%clk 0:00:04.5]} 56. c8=Q {[%clk 0:00:11.1]} 56... Bxc8 {[%clk
0:00:04.8]} 57. Bxc8 {[%clk 0:00:11.9]} 57... Kd6 {[%clk 0:00:04.3]} 58. Bg4
{[%clk 0:00:12.3]} 58... Kd5 {[%clk 0:00:03.5]} 59. Rc8 {[%clk 0:00:10.9]} 59...
Rxa4 {[%clk 0:00:03.2]} 60. Rh8 {[%clk 0:00:11.5]} 60... h5 {[%clk 0:00:02.8]}
61. Rxh5+ {[%clk 0:00:11.6]} 61... Kd6 {[%clk 0:00:02.2]} 62. Rh8 {[%clk
0:00:12.3]} 62... Rxf4 {[%clk 0:00:02.3]} 63. Kg5 {[%clk 0:00:11.4]} 63... Kc5
{[%clk 0:00:03.2]} 64. Kxf4 {[%clk 0:00:10.9]} 1-0

[Event "Late-Titled-Tuesday-Blitz-October-10-2023"]
[Site "Chess.com"]
[Date "2023.10.10"]
[Round "7"]
[White "DonJuanEGenaro"]
[Black "Atanejhad"]
[Result "0-1"]
[WhiteElo "1925"]
[BlackElo "2379"]
[TimeControl "180+1"]
[EndTime "15:13:19 PDT"]
[Termination "Atanejhad won on time"]

1. d4 {[%clk 0:02:59.7]} 1... Nf6 {[%clk 0:02:58.6]} 2. Nf3 {[%clk 0:02:59.7]}
2... g6 {[%clk 0:02:59]} 3. Bf4 {[%clk 0:02:59.7]} 3... Bg7 {[%clk 0:02:59.4]}
4. e3 {[%clk 0:03:00]} 4... O-O {[%clk 0:02:59.9]} 5. Be2 {[%clk 0:03:00]} 5...
c5 {[%clk 0:03:00.2]} 6. c3 {[%clk 0:02:59.4]} 6... d6 {[%clk 0:02:58.4]} 7. O-O
{[%clk 0:02:59]} 7... Nc6 {[%clk 0:02:58.9]} 8. h3 {[%clk 0:02:57.7]} 8... Nd5
{[%clk 0:02:57.3]} 9. Bh2 {[%clk 0:02:56.3]} 9... cxd4 {[%clk 0:02:57.6]} 10.
cxd4 {[%clk 0:02:50.2]} 10... e5 {[%clk 0:02:57.9]} 11. Nc3 {[%clk 0:02:45.4]}
11... Nxc3 {[%clk 0:02:52.4]} 12. bxc3 {[%clk 0:02:44]} 12... e4 {[%clk
0:02:53]} 13. Ne1 {[%clk 0:02:43]} 13... d5 {[%clk 0:02:53.5]} 14. c4 {[%clk
0:02:40.6]} 14... Be6 {[%clk 0:02:50.7]} 15. c5 {[%clk 0:02:23.1]} 15... b6
{[%clk 0:02:46.3]} 16. Qa4 {[%clk 0:02:18.6]} 16... Na5 {[%clk 0:02:42.9]} 17.
Rc1 {[%clk 0:02:17.6]} 17... Nc4 {[%clk 0:02:25.3]} 18. Bxc4 {[%clk 0:02:11.3]}
18... dxc4 {[%clk 0:02:26.2]} 19. c6 {[%clk 0:02:07.7]} 19... Qd5 {[%clk
0:02:15.3]} 20. Nc2 {[%clk 0:02:04.3]} 20... b5 {[%clk 0:02:14]} 21. Qa6 {[%clk
0:02:01.4]} 21... Rfc8 {[%clk 0:02:02.7]} 22. Nb4 {[%clk 0:02:01]} 22... Qg5
{[%clk 0:02:01.2]} 23. Bf4 {[%clk 0:01:56]} 23... Qh5 {[%clk 0:02:00.7]} 24.
Rfd1 {[%clk 0:01:49.2]} 24... Bf8 {[%clk 0:01:57.3]} 25. d5 {[%clk 0:01:42.1]}
25... Bxh3 {[%clk 0:01:56.2]} 26. gxh3 {[%clk 0:01:36.8]} 26... Bxb4 {[%clk
0:01:56.3]} 27. d6 {[%clk 0:01:35.5]} 27... Bxd6 {[%clk 0:01:48.6]} 28. Rxd6
{[%clk 0:01:32]} 28... Qxh3 {[%clk 0:01:48.5]} 29. c7 {[%clk 0:01:24.7]} 29...
Qg4+ {[%clk 0:01:41.1]} 30. Bg3 {[%clk 0:01:23.6]} 30... h5 {[%clk 0:01:38.5]}
31. Kf1 {[%clk 0:01:09.7]} 31... h4 {[%clk 0:01:35.6]} 32. Bf4 {[%clk
0:01:09.6]} 32... Rxc7 {[%clk 0:01:23.6]} 33. Rxg6+ {[%clk 0:01:05.1]} 33...
fxg6 {[%clk 0:01:21]} 34. Bxc7 {[%clk 0:01:04.8]} 34... Rf8 {[%clk 0:01:15.3]}
35. Qc6 {[%clk 0:00:48.9]} 35... Qh3+ {[%clk 0:01:10.6]} 36. Ke1 {[%clk
0:00:43.7]} 36... Qh1+ {[%clk 0:01:09.2]} 37. Ke2 {[%clk 0:00:35.8]} 37... Qf3+
{[%clk 0:01:08.3]} 38. Kd2 {[%clk 0:00:35.5]} 38... Qxf2+ {[%clk 0:01:08.3]} 39.
Kc3 {[%clk 0:00:35]} 39... Qxe3+ {[%clk 0:01:08]} 40. Kb4 {[%clk 0:00:34.4]}
40... Qd2+ {[%clk 0:00:56.2]} 41. Kxb5 {[%clk 0:00:29.4]} 41... Rf5+ {[%clk
0:00:33.3]} 42. Ka6 {[%clk 0:00:28.9]} 42... Qxa2+ {[%clk 0:00:31.8]} 43. Kb7
{[%clk 0:00:28.3]} 43... Qb2+ {[%clk 0:00:31.1]} 44. Kc8 {[%clk 0:00:20.3]}
44... Rf8+ {[%clk 0:00:29.4]} 45. Bd8 {[%clk 0:00:20]} 45... Qg7 {[%clk
0:00:16.6]} 46. Qe6+ {[%clk 0:00:17.7]} 46... Qf7 {[%clk 0:00:16.8]} 47. Qxf7+
{[%clk 0:00:16]} 47... Kxf7 {[%clk 0:00:17.7]} 48. Rxc4 {[%clk 0:00:15.1]} 48...
Re8 {[%clk 0:00:15.7]} 49. Kd7 {[%clk 0:00:13.3]} 49... h3 {[%clk 0:00:14.6]}
50. Bc7 {[%clk 0:00:11.3]} 50... g5 {[%clk 0:00:13.3]} 51. Bg3 {[%clk
0:00:10.4]} 51... g4 {[%clk 0:00:13.4]} 52. Kd6 {[%clk 0:00:08.9]} 52... Kf6
{[%clk 0:00:13.5]} 53. Kd5 {[%clk 0:00:08.9]} 53... Kf5 {[%clk 0:00:13.8]} 54.
Rc2 {[%clk 0:00:07.7]} 54... e3 {[%clk 0:00:14.1]} 55. Re2 {[%clk 0:00:07.4]}
55... Re4 {[%clk 0:00:12.7]} 56. Bh2 {[%clk 0:00:01.8]} 56... a5 {[%clk
0:00:13.2]} 57. Bg3 {[%clk 0:00:01.7]} 57... a4 {[%clk 0:00:12.6]} 58. Bh2
{[%clk 0:00:01.7]} 58... a3 {[%clk 0:00:13]} 59. Bg3 {[%clk 0:00:01.9]} 59... a2
{[%clk 0:00:13.7]} 60. Rxa2 {[%clk 0:00:01.4]} 60... e2 {[%clk 0:00:14.4]} 0-1